lending/lending_fUSD_20250122
["ID","MTS","AMOUNT","RATE_DAILY","PERIOD"]
[350034447,1737583840667,-2499.5,0.00020336,2]
[350034448,1737583840677,-1738.98,0.00020336,2]
[350034449,1737583840686,-500.0,0.00020336,2]
[350034450,1737583840695,-500.0,0.00020336,2]
[350034451,1737583840707,-687.89,0.00020336,2]
[350034452,1737583840717,-1103.91,0.00020336,2]
[350034453,1737583840727,-500.0,0.00020336,2]
[350034454,1737583840736,-500.0,0.00020336,2]
[350034455,1737583840745,-1389.03,0.00020336,2]
[350034456,1737583840754,-500.0,0.00020336,2]
[350034457,1737583840763,-1480.37,0.00020336,2]
[350034458,1737583840772,-588.87,0.00020336,2]
[350034459,1737583840781,-500.0,0.00020336,2]
[350034460,1737583840791,-1442.07,0.00020336,2]
[350034461,1737583840800,-2891.7,0.00020336,2]
[350034463,1737583840809,-500.0,0.00020336,2]
[350034464,1737583840819,-1059.0,0.00020336,2]
[350034465,1737583840828,-500.0,0.00020336,2]
[350034466,1737583840838,-742.38,0.00020336,2]
[350034467,1737583840848,-500.0,0.00020336,2]
[350034468,1737583840857,-500.0,0.00020336,2]
[350034469,1737583840868,-546.65,0.00020336,2]
[350034470,1737583840882,-500.0,0.00020336,2]
[350034471,1737583840892,-500.0,0.00020336,2]
[350034472,1737583840901,-500.0,0.00020336,2]
[350034473,1737583840911,-734.9,0.00020336,2]
[350034474,1737583840921,-1761.13,0.00020336,2]
[350034475,1737583840930,-1465.14,0.00020336,2]
[350034476,1737583840940,-500.0,0.00020336,2]
[350034477,1737583840951,-775.04,0.00020336,2]
[350034478,1737583840965,-841.93,0.00020336,2]
[350034480,1737583840975,-500.0,0.00020336,2]
[350034481,1737583840984,-500.0,0.00020336,2]
[350034482,1737583840993,-500.0,0.00020336,2]
[350034483,1737583841002,-1182.01,0.00020336,2]
[350034484,1737583841012,-946.15,0.00020336,2]
[350034486,1737583841022,-500.0,0.00020336,2]
[350034488,1737583841031,-500.0,0.00020336,2]
[350034489,1737583841042,-500.0,0.00020336,2]
[350034490,1737583841053,-500.0,0.00020336,2]
[350034491,1737583841062,-1041.32,0.00020336,2]
[350034492,1737583841072,-588.01,0.00020336,2]
[350034493,1737583841081,-500.0,0.00020336,2]
[350034494,1737583841091,-500.0,0.00020336,2]
[350034495,1737583841100,-500.0,0.00020336,2]
[350034496,1737583841110,-500.0,0.00020336,2]
[350034497,1737583841119,-534.98,0.00020336,2]
[350034498,1737583841128,-500.0,0.00020336,2]
[350034499,1737583841137,-1584.51,0.00020336,2]
[350034500,1737583841147,-376.28999521,0.00020343,2]
[350034501,1737583841155,-4920.81903111,0.00020421,2]
[350034502,1737583841196,-500.0,0.00020336,2]
[350034503,1737583841209,-1891.32206982,0.00020421,2]
[350034504,1737583841219,-2065.262001,0.00020484,3]
[350034505,1737583841228,-500.0,0.00020509,2]
[350034506,1737583841237,-500.0,0.00020509,2]
[350034507,1737583841246,-90.08210452,0.0002051,2]
[350034508,1737583841258,-2909.91789548,0.0002051,2]
[350034509,1737583841270,-362.81532752,0.0002051,2]
[350034510,1737583841279,-913.4,0.00020545,2]
[350034511,1737583841289,-541.87,0.00020545,2]
[350034512,1737583841299,-500.0,0.00020545,2]
[350034513,1737583841309,-1091.64,0.00020545,2]
[350034514,1737583841319,-717.88,0.00020545,2]
[350034515,1737583841330,-358.42836305,0.00020545,2]
[350034516,1737583841497,-362.3619997,0.00020293,2]
[350034517,1737583841516,-742.6380003,0.00020293,2]
[350034518,1737583841525,-421.56163695,0.00020545,2]
[350034519,1737583841535,-607.46,0.00020545,2]
[350034520,1737583841544,-500.0,0.00020545,2]
[350034521,1737583841553,-500.0,0.00020545,2]
[350034522,1737583841563,-733.35509769,0.00020545,2]
[350034523,1737583841574,-371.38490231,0.00020545,2]
[350034524,1737583841585,-1179.27,0.00020545,2]
[350034525,1737583841594,-500.0,0.00020545,2]
[350034526,1737583841604,-500.0,0.00020545,2]
[350034527,1737583841613,-1003.32104561,0.00020545,2]
[350034528,1737583841625,-249.19895439,0.00020545,2]
[350034529,1737583841636,-77.20008589,0.00020545,2]
[350034537,1737583843522,-578.89,0.00020062,2]
[350034538,1737583843533,-500.0,0.00020235,2]
[350034539,1737583843544,-422.79991411,0.00020545,2]
[350034540,1737583843553,-500.0,0.00020545,2]
[350034541,1737583843565,-500.0,0.00020545,2]
[350034542,1737583843575,-1515.79,0.00020545,2]
[350034543,1737583843584,-431.81,0.00020545,2]
[350034544,1737583843593,-901.69,0.00020545,2]
[350034545,1737583843603,-1086.52,0.00020545,2]
[350034546,1737583843612,-500.0,0.00020546,2]
[350034547,1737583843621,-500.0,0.00020546,2]
[350034548,1737583843631,-500.0,0.00020546,2]
[350034549,1737583843640,-500.0,0.00020546,2]
[350034550,1737583843650,-500.0,0.00020546,2]
[350034551,1737583843659,-559.38937664,0.00020546,2]
[350034552,1737583843669,-704.29,0.00020546,2]
[350034553,1737583843678,-500.0,0.00020546,2]
[350034554,1737583843687,-849.58,0.00020546,2]
[350034555,1737583843697,-819.3,0.00020546,2]
[350034556,1737583843709,-1946.7,0.00020546,2]
[350034557,1737583843719,-3595.33,0.00020546,2]
[350034558,1737583843728,-500.45,0.00020546,2]
[350034559,1737583843739,-886.86,0.00020546,2]
[350034560,1737583843748,-850.47,0.00020546,2]
[350034561,1737583843757,-1696.3,0.00020546,2]
[350034562,1737583843766,-500.0,0.00020546,2]
[350034563,1737583843775,-710.81,0.00020546,2]
[350034564,1737583843784,-912.61,0.00020546,2]
[350034565,1737583843793,-1207.79,0.00020546,2]
[350034566,1737583843802,-500.0,0.00020546,2]
[350034567,1737583843812,-1000.0,0.00020546,2]
[350034568,1737583843820,-1035.96,0.00020546,2]
[350034569,1737583843830,-500.0,0.00020546,2]
[350034570,1737583843839,-1497.98,0.00020546,2]
[350034571,1737583843847,-1894.65,0.00020546,2]
[350034572,1737583843857,-376.28999521,0.00020565,2]
[350034573,1737583843866,-6812.14110093,0.00020606,2]
[350034574,1737583843876,-362.81532741,0.00020609,2]
[350034575,1737583843889,-500.0,0.0002061,2]
[350034576,1737583843898,-703.15,0.0002061,2]
[350034577,1737583843907,-500.0,0.0002061,2]
[350034578,1737583843916,-500.0,0.0002061,2]
[350034579,1737583843925,-500.0,0.0002061,2]
[350034580,1737583843935,-500.0,0.0002061,2]
[350034581,1737583843944,-500.0,0.0002061,2]
[350034582,1737583843956,-500.0,0.0002061,2]
[350034583,1737583843965,-500.0,0.0002061,2]
[350034584,1737583843975,-500.0,0.0002061,2]
[350034585,1737583843984,-500.0,0.0002061,2]
[350034586,1737583843993,-500.0,0.0002061,2]
[350034587,1737583844002,-500.0,0.0002061,2]
[350034588,1737583844012,-500.0,0.0002061,2]
[350034589,1737583844021,-500.0,0.0002061,2]
[350034590,1737583844030,-365.9457076,0.0002061,2]
[350034591,1737583844040,-500.0,0.0002061,2]
[350034592,1737583844051,-616.25596824,0.0002061,2]
[350034593,1737583844060,-500.0,0.0002061,2]
[350034594,1737583844070,-500.0,0.0002061,2]
[350034595,1737583844079,-600.693953,0.0002061,2]
[350034596,1737583844088,-519.52,0.0002061,2]
[350034597,1737583844097,-500.0,0.0002061,2]
[350034598,1737583844107,-500.0,0.0002061,2]
[350034600,1737583844116,-248.62868434,0.0002061,2]
[350034602,1737583844125,-508.55,0.0002061,2]
[350034603,1737583844134,-590.01069788,0.0002061,2]
[350034604,1737583844143,-500.0,0.0002061,2]
[350034606,1737583844153,-500.0,0.0002061,2]
[350034608,1737583844162,-620.64,0.0002061,2]
[350034610,1737583844171,-500.0,0.0002061,2]
[350034612,1737583844180,-500.0,0.0002061,2]
[350034614,1737583844188,-500.0,0.0002061,2]
[350034616,1737583844198,-500.0,0.0002061,2]
[350034617,1737583844208,-598.32281621,0.0002061,2]
[350034618,1737583844217,-443.46993676,0.0002061,2]
[350034619,1737583844226,-512.1,0.0002061,2]
[350034620,1737583844235,-500.0,0.0002061,2]
[350034621,1737583844245,-502.52,0.0002061,2]
[350034622,1737583844254,-500.0,0.0002061,2]
[350034623,1737583844265,-500.0,0.0002061,2]
[350034624,1737583844275,-500.0,0.0002061,2]
[350034625,1737583844284,-500.0,0.0002061,2]
[350034626,1737583844293,-500.0,0.0002061,2]
[350034627,1737583844302,-500.0,0.0002061,2]
[350034628,1737583844311,-500.0,0.0002061,2]
[350034629,1737583844320,-500.0,0.0002061,2]
[350034630,1737583844330,-500.0,0.0002061,2]
[350034631,1737583844339,-500.0,0.0002061,2]
[350034632,1737583844348,-500.0,0.0002061,2]
[350034633,1737583844358,-500.0,0.0002061,2]
[350034634,1737583844367,-500.0,0.0002061,2]
[350034635,1737583844379,-500.0,0.0002061,2]
[350034636,1737583844391,-668.71,0.0002061,2]
[350034637,1737583844401,-500.0,0.0002061,2]
[350034638,1737583844411,-588.85,0.0002061,2]
[350034639,1737583844421,-243.28048602,0.0002061,2]
[350034640,1737583844431,-602.55,0.0002061,2]
[350034641,1737583844442,-500.0,0.0002061,2]
[350034642,1737583844454,-822.29,0.0002061,2]
[350034643,1737583844464,-500.0,0.0002061,2]
[350034644,1737583844473,-653.72,0.0002061,2]
[350034645,1737583844482,-540.74,0.0002061,2]
[350034646,1737583844491,-785.57,0.0002061,2]
[350034647,1737583844501,-500.0,0.0002061,2]
[350034648,1737583844510,-507.07,0.0002061,2]
[350034649,1737583844520,-500.0,0.0002061,2]
[350034650,1737583844529,-500.0,0.0002061,2]
[350034651,1737583844538,-500.0,0.0002061,2]
[350034652,1737583844547,-1772.03,0.0002061,2]
[350034653,1737583844556,-780.08,0.0002061,2]
[350034654,1737583844565,-526.79,0.0002061,2]
[350034655,1737583844573,-1158.82,0.0002061,2]
[350034656,1737583844582,-500.0,0.0002061,2]
[350034657,1737583844591,-500.0,0.0002061,2]
[350034658,1737583844601,-500.0,0.0002061,2]
[350034659,1737583844610,-800.87,0.0002061,2]
[350034660,1737583844619,-1226.05,0.0002061,2]
[350034661,1737583844628,-500.0,0.0002061,2]
[350034662,1737583844637,-500.0,0.0002061,2]
[350034663,1737583844646,-500.0,0.0002061,2]
[350034664,1737583844656,-3374.18,0.0002061,2]
[350034665,1737583844666,-500.0,0.0002061,2]
[350034666,1737583844675,-500.0,0.0002061,2]
[350034667,1737583844683,-989.14,0.0002061,2]
[350034668,1737583844692,-2499.5,0.0002061,2]
[350034669,1737583844700,-1738.98,0.0002061,2]
[350034670,1737583844712,-500.0,0.0002061,2]
[350034671,1737583844721,-500.0,0.0002061,2]
[350034672,1737583844729,-687.89,0.0002061,2]
[350034673,1737583844738,-1103.91,0.0002061,2]
[350034674,1737583844748,-500.0,0.0002061,2]
[350034675,1737583844760,-500.0,0.0002061,2]
[350034676,1737583844769,-1389.03,0.0002061,2]
[350034677,1737583844779,-500.0,0.0002061,2]
[350034678,1737583844789,-1480.37,0.0002061,2]
[350034679,1737583844799,-588.87,0.0002061,2]
[350034680,1737583844809,-500.0,0.0002061,2]
[350034681,1737583844818,-1442.07,0.0002061,2]
[350034682,1737583844828,-2891.7,0.0002061,2]
[350034683,1737583844839,-500.0,0.0002061,2]
[350034684,1737583844851,-1059.0,0.0002061,2]
[350034685,1737583844860,-500.0,0.0002061,2]
[350034686,1737583844869,-742.38,0.0002061,2]
[350034687,1737583844881,-500.0,0.0002061,2]
[350034688,1737583844893,-546.65,0.0002061,2]
[350034689,1737583844902,-500.0,0.0002061,2]
[350034690,1737583844911,-500.0,0.0002061,2]
[350034691,1737583844920,-500.0,0.0002061,2]
[350034692,1737583844930,-734.9,0.0002061,2]
[350034693,1737583844940,-1761.13,0.0002061,2]
[350034694,1737583844949,-1465.14,0.0002061,2]
[350034695,1737583844961,-619.79276718,0.0002061,2]
[350034696,1737583844970,-775.04,0.0002061,2]
[350034697,1737583844978,-841.93,0.0002061,2]
[350034698,1737583844988,-500.0,0.0002061,2]
[350034699,1737583844997,-500.0,0.0002061,2]
[350034700,1737583845006,-500.0,0.0002061,2]
[350034701,1737583845015,-1182.01,0.0002061,2]
[350034702,1737583845025,-946.15,0.0002061,2]
[350034703,1737583845034,-500.0,0.0002061,2]
[350034704,1737583845044,-500.0,0.0002061,2]
[350034705,1737583845053,-500.0,0.0002061,2]
[350034706,1737583845062,-318.38,0.0002061,2]
[350034707,1737583845071,-1041.32,0.0002061,2]
[350034708,1737583845080,-588.01,0.0002061,2]
[350034709,1737583845090,-500.0,0.0002061,2]
[350034710,1737583845099,-500.0,0.0002061,2]
[350034711,1737583845108,-500.0,0.0002061,2]
[350034712,1737583845117,-500.0,0.0002061,2]
[350034713,1737583845126,-534.98,0.0002061,2]
[350034714,1737583845135,-500.0,0.0002061,2]
[350034715,1737583845145,-1584.51,0.0002061,2]
[350034716,1737583845155,-500.0,0.0002061,2]
[350034717,1737583845164,-362.81532741,0.00020709,2]
[350034718,1737583845174,-200.0,0.00020721,2]
[350034719,1737583845183,-207.72898376,0.0002074,2]
[350034720,1737583845192,-200.0,0.00020783,2]
[350034721,1737583845202,-500.0,0.00020783,2]
[350034722,1737583845213,-500.0,0.00020783,2]
[350034723,1737583845223,-1335.83310369,0.00020784,2]
[350034724,1737583845232,-200.0,0.00020786,2]
[350034725,1737583845242,-756.27217303,0.00020787,2]
[350034726,1737583845251,-376.28999521,0.00020788,2]
[350034727,1737583845260,-8868.17020642,0.00020788,2]
[350034728,1737583845269,-6812.14110093,0.00020791,2]
[350034729,1737583845278,-756.27217303,0.00020794,2]
[350034730,1737583845288,-1335.83310369,0.00020795,2]
[350034731,1737583845297,-200.0,0.00020796,2]
[350034732,1737583845306,-200.0,0.00020806,2]
[350034733,1737583845315,-362.81532741,0.00020808,2]
[350034734,1737583845325,-1335.83310369,0.00020809,2]
[350034735,1737583845334,-5473.12361431,0.00020815,2]
[350034736,1737583845343,-913.4,0.00020819,2]
[350034737,1737583845353,-541.87,0.00020819,2]
[350034738,1737583845362,-500.0,0.00020819,2]
[350034739,1737583845372,-1091.64,0.00020819,2]
[350034740,1737583845381,-717.88,0.00020819,2]
[350034741,1737583845535,-779.99,0.00020819,2]
[350034742,1737583845546,-607.46,0.00020819,2]
[350034743,1737583845555,-500.0,0.00020819,2]
[350034744,1737583845565,-500.0,0.00020819,2]
[350034745,1737583845574,-1104.74,0.00020819,2]
[350034746,1737583845583,-1179.27,0.00020819,2]
[350034747,1737583845592,-500.0,0.00020819,2]
[350034748,1737583845602,-500.0,0.00020819,2]
[350034749,1737583845611,-1252.52,0.00020819,2]
[350034750,1737583845620,-500.0,0.00020819,2]
[350034751,1737583845629,-500.0,0.00020819,2]
[350034752,1737583845638,-1515.79,0.00020819,2]
[350034753,1737583845647,-901.69,0.00020819,2]
[350034754,1737583845658,-1086.52,0.00020819,2]
[350034755,1737583845668,-500.0,0.0002082,2]
[350034756,1737583845679,-500.0,0.0002082,2]
[350034757,1737583845689,-500.0,0.0002082,2]
[350034758,1737583845698,-500.0,0.0002082,2]
[350034759,1737583845708,-500.0,0.0002082,2]
[350034760,1737583845717,-704.29,0.0002082,2]
[350034761,1737583845726,-500.0,0.0002082,2]
[350034762,1737583845735,-849.58,0.0002082,2]
[350034763,1737583845744,-819.3,0.0002082,2]
[350034764,1737583845754,-1946.7,0.0002082,2]
[350034765,1737583845763,-3595.33,0.0002082,2]
[350034766,1737583845772,-500.45,0.0002082,2]
[350034767,1737583845782,-886.86,0.0002082,2]
[350034768,1737583845792,-850.47,0.0002082,2]
[350034769,1737583845801,-1696.3,0.0002082,2]
[350034770,1737583845811,-500.0,0.0002082,2]
[350034771,1737583845821,-710.81,0.0002082,2]
[350034772,1737583845831,-912.61,0.0002082,2]
[350034773,1737583845841,-1207.79,0.0002082,2]
[350034774,1737583845852,-500.0,0.0002082,2]
[350034775,1737583845862,-1000.0,0.0002082,2]
[350034776,1737583845872,-1035.96,0.0002082,2]
[350034777,1737583845885,-500.0,0.0002082,2]
[350034778,1737583845895,-1497.98,0.0002082,2]
[350034779,1737583845905,-1894.65,0.0002082,2]
[350034780,1737583845914,-200.0,0.00020824,2]
[350034781,1737583845926,-756.27217303,0.00020832,2]
[350034782,1737583845936,-5473.12361431,0.00020841,2]
[350034783,1737583845947,-5473.12361431,0.00020844,2]
[350034784,1737583845962,-756.27217303,0.00020857,2]
[350034786,1737583845971,-8868.17020642,0.00020861,2]
[350034787,1737583845980,-5473.12361431,0.0002087,2]
[350034788,1737583845989,-500.0,0.00020884,2]
[350034789,1737583845999,-703.15,0.00020884,2]
[350034790,1737583846008,-289.7975775,0.00020884,2]
[350034791,1737583846018,-500.0,0.00020884,2]
[350034792,1737583846028,-500.0,0.00020884,2]
[350034793,1737583846038,-500.0,0.00020884,2]
[350034794,1737583846047,-500.0,0.00020884,2]
[350034795,1737583846057,-500.0,0.00020884,2]
[350034796,1737583846066,-500.0,0.00020884,2]
[350034797,1737583846076,-484.57984955,0.00020884,2]
[350034798,1737583846086,-500.0,0.00020884,2]
[350034799,1737583846095,-500.0,0.00020884,2]
[350034800,1737583846104,-500.0,0.00020884,2]
[350034802,1737583846113,-500.0,0.00020884,2]
[350034804,1737583846123,-500.0,0.00020884,2]
[350034806,1737583846132,-500.0,0.00020884,2]
[350034808,1737583846141,-500.0,0.00020884,2]
[350034809,1737583846150,-600.693953,0.00020884,2]
[350034811,1737583846160,-519.52,0.00020884,2]
[350034813,1737583846170,-500.0,0.00020884,2]
[350034815,1737583846180,-500.0,0.00020884,2]
[350034817,1737583846189,-508.55,0.00020884,2]
[350034820,1737583846199,-500.0,0.00020884,2]
[350034822,1737583846208,-500.0,0.00020884,2]
[350034825,1737583846219,-620.64,0.00020884,2]
[350034828,1737583846228,-500.0,0.00020884,2]
[350034831,1737583846238,-500.0,0.00020884,2]
[350034834,1737583846248,-500.0,0.00020884,2]
[350034838,1737583846258,-500.0,0.00020884,2]
[350034841,1737583846267,-512.1,0.00020884,2]
[350034844,1737583846277,-500.0,0.00020884,2]
[350034847,1737583846286,-502.52,0.00020884,2]
[350034850,1737583846296,-500.0,0.00020884,2]
[350034853,1737583846306,-500.0,0.00020884,2]
[350034856,1737583846315,-500.0,0.00020884,2]
[350034858,1737583846324,-500.0,0.00020884,2]
[350034861,1737583846334,-500.0,0.00020884,2]
[350034864,1737583846343,-500.0,0.00020884,2]
[350034867,1737583846352,-500.0,0.00020884,2]
[350034870,1737583846361,-500.0,0.00020884,2]
[350034873,1737583846370,-500.0,0.00020884,2]
[350034875,1737583846380,-500.0,0.00020884,2]
[350034877,1737583846390,-500.0,0.00020884,2]
[350034879,1737583846400,-161.85054993,0.00020884,2]
[350034881,1737583846409,-500.0,0.00020884,2]
[350034883,1737583846419,-500.0,0.00020884,2]
[350034884,1737583846428,-668.71,0.00020884,2]
[350034886,1737583846437,-500.0,0.00020884,2]
[350034888,1737583846447,-588.85,0.00020884,2]
[350034890,1737583846459,-602.55,0.00020884,2]
[350034892,1737583846469,-500.0,0.00020884,2]
[350034894,1737583846478,-822.29,0.00020884,2]
[350034895,1737583846487,-500.0,0.00020884,2]
[350034896,1737583846497,-653.72,0.00020884,2]
[350034897,1737583846506,-540.74,0.00020884,2]
[350034898,1737583846516,-785.57,0.00020884,2]
[350034899,1737583846525,-243.20601408,0.00020884,2]
[350034900,1737583846534,-507.07,0.00020884,2]
[350034901,1737583846544,-500.0,0.00020884,2]
[350034902,1737583846553,-262.42,0.00020884,2]
[350034903,1737583846563,-1772.03,0.00020884,2]
[350034904,1737583846572,-500.0,0.00020884,2]
[350034905,1737583846581,-780.08,0.00020884,2]
[350034906,1737583846590,-526.79,0.00020884,2]
[350034907,1737583846600,-1158.82,0.00020884,2]
[350034908,1737583846609,-500.0,0.00020884,2]
[350034909,1737583846619,-500.0,0.00020884,2]
[350034910,1737583846629,-500.0,0.00020884,2]
[350034911,1737583846638,-800.87,0.00020884,2]
[350034912,1737583846647,-1226.05,0.00020884,2]
[350034913,1737583846657,-500.0,0.00020884,2]
[350034914,1737583846666,-500.0,0.00020884,2]
[350034915,1737583846675,-500.0,0.00020884,2]
[350034916,1737583846684,-3085.35442765,0.00020884,2]
[350034917,1737583846852,-288.82557235,0.00020884,2]
[350034918,1737583846862,-500.0,0.00020884,2]
[350034919,1737583846872,-500.0,0.00020884,2]
[350034920,1737583846884,-989.14,0.00020884,2]
[350034921,1737583846894,-2499.5,0.00020884,2]
[350034922,1737583846904,-1738.98,0.00020884,2]
[350034923,1737583846913,-500.0,0.00020884,2]
[350034924,1737583846924,-500.0,0.00020884,2]
[350034925,1737583846934,-687.89,0.00020884,2]
[350034926,1737583846944,-1103.91,0.00020884,2]
[350034927,1737583846953,-433.64482891,0.00020884,2]
[350034928,1737583846966,-500.0,0.00020884,2]
[350034929,1737583846976,-1389.03,0.00020884,2]
[350034930,1737583846986,-500.0,0.00020884,2]
[350034931,1737583846995,-764.73236929,0.00020884,2]
[350034932,1737583847007,-715.63763071,0.00020884,2]
[350034933,1737583847017,-588.87,0.00020884,2]
[350034934,1737583847026,-500.0,0.00020884,2]
[350034935,1737583847035,-1442.07,0.00020884,2]
[350034936,1737583847045,-2891.7,0.00020884,2]
[350034937,1737583847055,-537.52,0.00020884,2]
[350034938,1737583847066,-1059.0,0.00020884,2]
[350034939,1737583847075,-500.0,0.00020884,2]
[350034940,1737583847086,-742.38,0.00020884,2]
[350034941,1737583847096,-500.0,0.00020884,2]
[350034942,1737583847106,-546.65,0.00020884,2]
[350034943,1737583847115,-500.0,0.00020884,2]
[350034944,1737583847125,-500.0,0.00020884,2]
[350034945,1737583847134,-500.0,0.00020884,2]
[350034946,1737583847144,-734.9,0.00020884,2]
[350034947,1737583847153,-1761.13,0.00020884,2]
[350034948,1737583847163,-1465.14,0.00020884,2]
[350034949,1737583847172,-775.04,0.00020884,2]
[350034950,1737583847182,-841.93,0.00020884,2]
[350034951,1737583847191,-500.0,0.00020884,2]
[350034952,1737583847201,-500.0,0.00020884,2]
[350034953,1737583847213,-273.03236929,0.00020884,2]
[350034954,1737583847437,-508.459317,0.00020271,2]
[350034955,1737583847448,-578.89,0.00020336,2]
[350034956,1737583847459,-500.0,0.00020509,2]
[350034957,1737583847469,-508.459317,0.00020545,2]
[350034958,1737583847479,-578.89,0.0002061,2]
[350034959,1737583847488,-500.0,0.00020783,2]
[350034960,1737583847498,-508.459317,0.00020819,2]
[350034961,1737583847508,-226.96763071,0.00020884,2]
[350034962,1737583847517,-1182.01,0.00020884,2]
[350034963,1737583847527,-946.15,0.00020884,2]
[350034964,1737583847536,-500.0,0.00020884,2]
[350034965,1737583847546,-500.0,0.00020884,2]
[350034966,1737583847555,-1041.32,0.00020884,2]
[350034967,1737583847564,-588.01,0.00020884,2]
[350034968,1737583847574,-500.0,0.00020884,2]
[350034969,1737583847584,-500.0,0.00020884,2]
[350034970,1737583847594,-500.0,0.00020884,2]
[350034971,1737583847603,-26.20039763,0.00020884,2]
[350034972,1737583847619,-473.79960237,0.00020884,2]
[350034973,1737583847628,-107.09048545,0.00020884,2]
[350034975,1737584440985,150.0,0.00012001,2]
[350034976,1737584501799,400.0,0.00022,120]
[350034977,1737584554677,1183.0,0.00022,120]
[350034978,1737584616414,153.45,0.00010137,2]
[350034980,1737584708463,276295.49,0.00012,2]
[350034981,1737584708489,61133.23776783,0.00012,2]
[350034982,1737584725383,213.20132938,0.000108,2]
[350034983,1737584734057,331.94443939,0.0001,2]
[350034985,1737584761319,395.22604354,0.0001,2]
[350034986,1737584875145,2694.01737587,0.0001,2]
[350034987,1737584878645,4331036.69008828,0.0001,2]
[350034991,1737584966059,-22099.0,0.00017446,2]
[350034992,1737584966082,-1087.61,0.00017578,2]
[350034993,1737584966105,-205.82867114,0.000181,2]
[350034994,1737584966128,-207.72898376,0.00018548,2]
[350034995,1737584966152,-161.03,0.00018998,2]
[350035014,1737585032444,-1000.0,0.00019186,2]
[350035015,1737585032454,-250.0,0.00019284,2]
[350035016,1737585032464,-181.17,0.00019301,2]
[350035017,1737585032474,-1062.23,0.00019301,2]
[350035018,1737585032484,-394.8,0.00019313,2]
[350035019,1737585032493,-897.61,0.00019342,2]
[350035020,1737585032503,-250.0,0.00019359,2]
[350035021,1737585032513,-668.23144893,0.00019452,2]
[350035022,1737585032536,-1773.00500005,0.00019452,2]
[350035023,1737585032549,-1032.129991,0.00019452,2]
[350035024,1737585032561,-1919.85,0.00019452,2]
[350035025,1737585032628,-5110.24358885,0.00019452,2]
[350035026,1737585032642,-8078.60900422,0.00019452,2]
[350035027,1737585032713,-434.3090644,0.00019452,2]
[350035028,1737585032726,-4023.22190255,0.00019452,2]
[350035029,1737585032735,-9.77748711,0.00019529,2]
[350035030,1737585032746,-162.11251289,0.00019529,2]
[350035031,1737585032755,-150.0,0.00019548,2]
[350035032,1737585032764,-86.63748711,0.00019722,2]
[350035033,1737585032797,-163.36251289,0.00019722,2]
[350035034,1737585032806,-427.15934284,0.00019827,2]
[350035035,1737585032815,-1087.61,0.00019842,2]
[350035036,1737585032825,-170.4,0.0001988,2]
[350035037,1737585032834,-262.34,0.0001999,2]
[350035038,1737585032843,-255.0,0.00019999,2]
[350035039,1737585032852,-400.0,0.0002,2]
[350035040,1737585032861,-626.72,0.0002,14]
[350035041,1737585032871,-10011.09610055,0.0002,7]
[350035042,1737585032880,-12732.55595432,0.0002,2]
[350035044,1737585032891,-534.85215978,0.0002,2]
[350035061,1737585038338,-38445.86748592,0.0002,2]
[350035062,1737585038350,-10384.0,0.0002,2]